[Event "*** Titled Tuesday Blitz"]
[Site "Chess.com"]
[Date "2019.11.05"]
[Round "2"]
[White "Irishchessman16"]
[Black "GasconJR"]
[Result "0-1"]
[WhiteElo "2179"]
[BlackElo "2461"]
[TimeControl "180+2"]
[EndTime "13:24:27 PST"]
[Termination "GasconJR won by resignation"]

1. d4 {[%clk 0:03:01.9]} 1... Nf6 {[%clk 0:03:00.7]} 2. c4 {[%clk 0:03:02.4]}
2... g6 {[%clk 0:02:58.9]} 3. Nc3 {[%clk 0:03:02.9]} 3... Bg7 {[%clk 0:02:58.3]}
4. e4 {[%clk 0:03:03.8]} 4... d6 {[%clk 0:02:59.7]} 5. h3 {[%clk 0:03:03]} 5...
O-O {[%clk 0:03:00.6]} 6. Be3 {[%clk 0:03:03.8]} 6... e5 {[%clk 0:02:49.9]} 7.
d5 {[%clk 0:03:02.8]} 7... Na6 {[%clk 0:02:40.8]} 8. g4 {[%clk 0:03:00.1]} 8...
Nc5 {[%clk 0:02:39.1]} 9. f3 {[%clk 0:03:01.2]} 9... a5 {[%clk 0:02:31.2]} 10.
Qd2 {[%clk 0:02:59.4]} 10... Nfd7 {[%clk 0:02:28.9]} 11. Nge2 {[%clk 0:02:48.6]}
11... Bf6 {[%clk 0:02:04.2]} 12. g5 {[%clk 0:02:44.2]} 12... Bg7 {[%clk
0:02:03.1]} 13. h4 {[%clk 0:02:44.8]} 13... f5 {[%clk 0:02:02.1]} 14. exf5
{[%clk 0:02:38.7]} 14... gxf5 {[%clk 0:02:00.8]} 15. O-O-O {[%clk 0:02:39]}
15... e4 {[%clk 0:01:58.1]} 16. fxe4 {[%clk 0:02:33]} 16... fxe4 {[%clk
0:01:58.8]} 17. Ng3 {[%clk 0:02:32]} 17... Qe7 {[%clk 0:01:30.5]} 18. Be2 {[%clk
0:02:19.3]} 18... Ne5 {[%clk 0:01:25.4]} 19. Bxc5 {[%clk 0:02:16]} 19... dxc5
{[%clk 0:01:25.6]} 20. Ngxe4 {[%clk 0:02:17.2]} 20... Bf5 {[%clk 0:01:04.5]} 21.
Rde1 {[%clk 0:01:58.6]} 21... Rae8 {[%clk 0:00:56.7]} 22. Rhf1 {[%clk
0:01:47.2]} 22... Bxe4 {[%clk 0:00:45.6]} 23. Nxe4 {[%clk 0:01:46.8]} 23... Rxf1
{[%clk 0:00:46.2]} 24. Bxf1 {[%clk 0:01:34.2]} 24... Qf8 {[%clk 0:00:24.8]} 25.
d6 {[%clk 0:01:11.2]} 25... cxd6 {[%clk 0:00:16.2]} 26. Qd5+ {[%clk 0:01:10.3]}
26... Kh8 {[%clk 0:00:15.9]} 27. Kc2 {[%clk 0:01:02.3]} 27... Nf3 {[%clk
0:00:16.5]} 28. Rd1 {[%clk 0:00:57.4]} 28... Nd4+ {[%clk 0:00:17.8]} 29. Kb1
{[%clk 0:00:54.7]} 29... Be5 {[%clk 0:00:19.2]} 30. Bg2 {[%clk 0:00:49.2]} 30...
Qf4 {[%clk 0:00:17.9]} 31. Rf1 {[%clk 0:00:47.3]} 31... Qe3 {[%clk 0:00:16.8]}
32. Nf2 {[%clk 0:00:29.9]} 32... Qe2 {[%clk 0:00:12.3]} 33. Qe4 {[%clk 0:00:29]}
33... Qd2 {[%clk 0:00:13]} 34. Qd3 {[%clk 0:00:27.8]} 34... Nf3 {[%clk
0:00:11.2]} 35. Qc2 {[%clk 0:00:19.4]} 35... Qxc2+ {[%clk 0:00:07.7]} 36. Kxc2
{[%clk 0:00:20]} 36... Rf8 {[%clk 0:00:06.8]} 37. Kd3 {[%clk 0:00:11.7]} 37...
Nh2 {[%clk 0:00:07.5]} 0-1

[Event "*** Titled Tuesday Blitz"]
[Site "Chess.com"]
[Date "2019.11.05"]
[Round "2"]
[White "13MiRacLe"]
[Black "PowerThinking2650"]
[Result "1-0"]
[WhiteElo "2613"]
[BlackElo "2336"]
[TimeControl "180+2"]
[EndTime "13:24:30 PST"]
[Termination "13MiRacLe won on time"]

1. e4 {[%clk 0:02:55.9]} 1... e5 {[%clk 0:03:00.4]} 2. Nf3 {[%clk 0:02:55.5]}
2... Nc6 {[%clk 0:03:00.6]} 3. Bb5 {[%clk 0:02:57]} 3... a6 {[%clk 0:03:01.4]}
4. Ba4 {[%clk 0:02:57.6]} 4... Nf6 {[%clk 0:03:02]} 5. O-O {[%clk 0:02:57.9]}
5... Be7 {[%clk 0:03:03.1]} 6. Re1 {[%clk 0:02:53.4]} 6... b5 {[%clk 0:03:03.9]}
7. Bb3 {[%clk 0:02:52.9]} 7... d6 {[%clk 0:03:05.2]} 8. a4 {[%clk 0:02:53.5]}
8... b4 {[%clk 0:03:02.7]} 9. d4 {[%clk 0:02:53.9]} 9... Bg4 {[%clk 0:02:58.7]}
10. dxe5 {[%clk 0:02:54.7]} 10... Nxe5 {[%clk 0:02:52.6]} 11. Nbd2 {[%clk
0:02:55.2]} 11... O-O {[%clk 0:02:42.8]} 12. h3 {[%clk 0:02:55.9]} 12... Bh5
{[%clk 0:02:38.2]} 13. g4 {[%clk 0:02:56.7]} 13... Bg6 {[%clk 0:02:37]} 14. Nd4
{[%clk 0:02:50.6]} 14... c5 {[%clk 0:02:34.2]} 15. Nf5 {[%clk 0:02:51.2]} 15...
Nc6 {[%clk 0:02:00]} 16. Nf3 {[%clk 0:02:33.7]} 16... Na5 {[%clk 0:01:57.7]} 17.
Bf4 {[%clk 0:01:27.7]} 17... c4 {[%clk 0:01:38.1]} 18. Ba2 {[%clk 0:01:28.1]}
18... d5 {[%clk 0:01:28.8]} 19. Nxe7+ {[%clk 0:01:18.7]} 19... Qxe7 {[%clk
0:01:28.8]} 20. exd5 {[%clk 0:01:19.8]} 20... Qb7 {[%clk 0:01:25.9]} 21. d6
{[%clk 0:01:06.7]} 21... Nd5 {[%clk 0:00:24.3]} 22. Bg3 {[%clk 0:01:03.3]} 22...
Rfe8 {[%clk 0:00:18.8]} 23. Ne5 {[%clk 0:01:01.5]} 23... b3 {[%clk 0:00:14.2]}
24. cxb3 {[%clk 0:01:02.3]} 24... Nxb3 {[%clk 0:00:11.5]} 25. Bxb3 {[%clk
0:00:54.7]} 25... cxb3 {[%clk 0:00:12]} 26. Nxg6 {[%clk 0:00:45.7]} 26... hxg6
{[%clk 0:00:12.7]} 27. Qd4 {[%clk 0:00:43.7]} 27... Nb4 {[%clk 0:00:11]} 28. d7
{[%clk 0:00:36.3]} 28... Rxe1+ {[%clk 0:00:10.6]} 29. Rxe1 {[%clk 0:00:36.6]}
29... Nc2 {[%clk 0:00:09.1]} 30. Re8+ {[%clk 0:00:36.8]} 30... Kh7 {[%clk
0:00:09]} 31. Qd3 {[%clk 0:00:18.8]} 31... Nb4 {[%clk 0:00:02.4]} 32. Qxb3
{[%clk 0:00:19.5]} 1-0

[Event "*** Titled Tuesday Blitz"]
[Site "Chess.com"]
[Date "2019.11.05"]
[Round "2"]
[White "Zq1"]
[Black "MITerryble"]
[Result "0-1"]
[WhiteElo "2600"]
[BlackElo "2873"]
[TimeControl "180+2"]
[EndTime "13:24:35 PST"]
[Termination "MITerryble won by resignation"]

1. d4 {[%clk 0:03:01.9]} 1... e6 {[%clk 0:03:00.3]} 2. c4 {[%clk 0:03:01.8]}
2... Bb4+ {[%clk 0:03:00.9]} 3. Nd2 {[%clk 0:02:59.6]} 3... Nf6 {[%clk
0:03:01.5]} 4. g3 {[%clk 0:03:00.7]} 4... O-O {[%clk 0:03:02.1]} 5. Bg2 {[%clk
0:03:01.7]} 5... d5 {[%clk 0:03:02]} 6. Nf3 {[%clk 0:03:00.9]} 6... b6 {[%clk
0:02:54.5]} 7. O-O {[%clk 0:02:59.2]} 7... Bb7 {[%clk 0:02:55.8]} 8. a3 {[%clk
0:03:00.1]} 8... Be7 {[%clk 0:02:51]} 9. b4 {[%clk 0:02:54.5]} 9... a5 {[%clk
0:02:48.5]} 10. b5 {[%clk 0:02:54.7]} 10... Nbd7 {[%clk 0:02:40.2]} 11. Bb2
{[%clk 0:02:55.5]} 11... Ne4 {[%clk 0:02:22.3]} 12. cxd5 {[%clk 0:02:49.8]}
12... exd5 {[%clk 0:02:21.1]} 13. Qc2 {[%clk 0:02:46.8]} 13... Nxd2 {[%clk
0:02:18.6]} 14. Qxd2 {[%clk 0:02:34.4]} 14... c6 {[%clk 0:02:18.5]} 15. bxc6
{[%clk 0:02:34.4]} 15... Bxc6 {[%clk 0:02:20.4]} 16. Rfc1 {[%clk 0:02:29]} 16...
Rc8 {[%clk 0:02:11.5]} 17. Bh3 {[%clk 0:02:27.8]} 17... Rc7 {[%clk 0:02:12.2]}
18. Rc2 {[%clk 0:02:20.7]} 18... Bb7 {[%clk 0:02:05.6]} 19. Rxc7 {[%clk
0:02:19.1]} 19... Qxc7 {[%clk 0:02:07.5]} 20. Rc1 {[%clk 0:02:19.5]} 20... Qd8
{[%clk 0:02:07.1]} 21. Qc2 {[%clk 0:02:12.9]} 21... Bd6 {[%clk 0:02:04.6]} 22.
Ne5 {[%clk 0:02:10.5]} 22... Nxe5 {[%clk 0:02:04.5]} 23. dxe5 {[%clk 0:02:11.5]}
23... Bc5 {[%clk 0:02:06]} 24. Qd2 {[%clk 0:02:08.7]} 24... d4 {[%clk
0:02:04.1]} 25. f3 {[%clk 0:01:37.3]} 25... Qd5 {[%clk 0:02:00.6]} 26. Rd1
{[%clk 0:01:34.6]} 26... Qxe5 {[%clk 0:01:58.4]} 27. Kh1 {[%clk 0:01:24.3]}
27... Re8 {[%clk 0:01:39.7]} 28. Bf1 {[%clk 0:01:13.6]} 28... Rd8 {[%clk
0:01:27.8]} 29. Qf4 {[%clk 0:00:53.4]} 29... Qxf4 {[%clk 0:01:24.5]} 30. gxf4
{[%clk 0:00:54.6]} 30... Rd6 {[%clk 0:01:26]} 31. Bg2 {[%clk 0:00:43.3]} 31...
f5 {[%clk 0:01:18]} 32. h4 {[%clk 0:00:40.4]} 32... Kf7 {[%clk 0:01:16.4]} 33.
Kh2 {[%clk 0:00:41.6]} 33... Re6 {[%clk 0:01:03.8]} 34. Bxd4 {[%clk 0:00:35.4]}
34... Rxe2 {[%clk 0:01:03.6]} 35. Bxc5 {[%clk 0:00:21.5]} 35... Bxf3 {[%clk
0:01:03.3]} 36. Rd7+ {[%clk 0:00:22.1]} 36... Ke8 {[%clk 0:00:58.9]} 37. Re7+
{[%clk 0:00:20]} 37... Rxe7 {[%clk 0:00:59.4]} 38. Bxe7 {[%clk 0:00:20.7]} 38...
Bxg2 {[%clk 0:01:00.8]} 39. Bd6 {[%clk 0:00:18.6]} 39... Kd7 {[%clk 0:00:59.7]}
40. Be5 {[%clk 0:00:19]} 40... Bd5 {[%clk 0:00:52.9]} 41. Bxg7 {[%clk
0:00:19.7]} 41... Kc6 {[%clk 0:00:53]} 42. Bf8 {[%clk 0:00:19.7]} 42... Kb5
{[%clk 0:00:53.4]} 43. h5 {[%clk 0:00:19.5]} 43... Ka4 {[%clk 0:00:49.4]} 44. h6
{[%clk 0:00:20.2]} 44... b5 {[%clk 0:00:50.3]} 45. Kg3 {[%clk 0:00:20.9]} 45...
b4 {[%clk 0:00:49.7]} 46. axb4 {[%clk 0:00:22]} 46... axb4 {[%clk 0:00:51.6]}
47. Kh4 {[%clk 0:00:21.9]} 47... Bf7 {[%clk 0:00:49.1]} 48. Kg5 {[%clk
0:00:14.8]} 48... Bg6 {[%clk 0:00:50.1]} 49. Bg7 {[%clk 0:00:15.6]} 49... Ka3
{[%clk 0:00:46.3]} 50. Bf8 {[%clk 0:00:16.2]} 50... Kb3 {[%clk 0:00:40.2]} 51.
Bd6 {[%clk 0:00:17]} 51... Kc3 {[%clk 0:00:41.3]} 52. Kf6 {[%clk 0:00:17.2]}
52... b3 {[%clk 0:00:42.4]} 0-1

[Event "*** Titled Tuesday Blitz"]
[Site "Chess.com"]
[Date "2019.11.05"]
[Round "2"]
[White "HrvojeZagreb"]
[Black "hypert"]
[Result "0-1"]
[WhiteElo "2165"]
[BlackElo "2444"]
[TimeControl "180+2"]
[EndTime "13:24:39 PST"]
[Termination "hypert won by resignation"]

1. d4 {[%clk 0:03:01.9]} 1... Nf6 {[%clk 0:03:00.7]} 2. Bf4 {[%clk 0:03:02.8]}
2... d5 {[%clk 0:03:01.1]} 3. e3 {[%clk 0:03:03.9]} 3... e6 {[%clk 0:03:02.1]}
4. Nf3 {[%clk 0:03:04.6]} 4... Bd6 {[%clk 0:03:03.3]} 5. Bg3 {[%clk 0:03:05.8]}
5... c5 {[%clk 0:03:04.1]} 6. c3 {[%clk 0:03:06.2]} 6... O-O {[%clk 0:03:00.6]}
7. Nbd2 {[%clk 0:03:04.1]} 7... b6 {[%clk 0:03:00.3]} 8. Bd3 {[%clk 0:03:04]}
8... Ba6 {[%clk 0:02:59.8]} 9. Qe2 {[%clk 0:02:58.3]} 9... Bxd3 {[%clk 0:03:00]}
10. Qxd3 {[%clk 0:03:00.2]} 10... Nc6 {[%clk 0:03:00]} 11. e4 {[%clk 0:02:51.6]}
11... Nxe4 {[%clk 0:02:48.4]} 12. Nxe4 {[%clk 0:02:53.5]} 12... dxe4 {[%clk
0:02:49.8]} 13. Qxe4 {[%clk 0:02:54.2]} 13... Ne7 {[%clk 0:02:41.5]} 14. O-O-O
{[%clk 0:02:52.7]} 14... c4 {[%clk 0:02:25.4]} 15. Bh4 {[%clk 0:02:32.6]} 15...
Qc7 {[%clk 0:02:09]} 16. Bxe7 {[%clk 0:02:30.5]} 16... Bxe7 {[%clk 0:02:06]} 17.
Ne5 {[%clk 0:02:29.9]} 17... Bd6 {[%clk 0:01:58.5]} 18. f4 {[%clk 0:02:29.2]}
18... b5 {[%clk 0:01:58.7]} 19. Rhf1 {[%clk 0:02:04.8]} 19... a5 {[%clk
0:01:39.2]} 20. Rf3 {[%clk 0:02:05.1]} 20... b4 {[%clk 0:01:38.9]} 21. Rh3
{[%clk 0:02:00.3]} 21... g6 {[%clk 0:01:19.5]} 22. g4 {[%clk 0:01:49.5]} 22...
f6 {[%clk 0:01:06.2]} 23. Nxg6 {[%clk 0:01:19.3]} 23... hxg6 {[%clk 0:01:05.8]}
24. Qxg6+ {[%clk 0:01:21.2]} 24... Qg7 {[%clk 0:01:06.2]} 25. Qe4 {[%clk
0:01:22.2]} 25... Rae8 {[%clk 0:00:43]} 26. Rg1 {[%clk 0:01:09.1]} 26... bxc3
{[%clk 0:00:31.3]} 27. Rxc3 {[%clk 0:01:08.6]} 27... Rf7 {[%clk 0:00:17.7]} 28.
Rgg3 {[%clk 0:01:04.5]} 28... Qh6 {[%clk 0:00:18.3]} 29. g5 {[%clk 0:01:00.3]}
29... Qxh2 {[%clk 0:00:18.8]} 30. gxf6+ {[%clk 0:00:57.5]} 30... Kf8 {[%clk
0:00:20.4]} 31. Qg6 {[%clk 0:00:27]} 31... Qh1+ {[%clk 0:00:20.1]} 32. Rg1
{[%clk 0:00:20.3]} 32... Qh8 {[%clk 0:00:20.9]} 33. Rh3 {[%clk 0:00:16.9]} 33...
Bxf4+ {[%clk 0:00:21.6]} 34. Kb1 {[%clk 0:00:17.2]} 34... Qxf6 {[%clk
0:00:23.2]} 35. Qg4 {[%clk 0:00:07.5]} 35... Qf5+ {[%clk 0:00:23.5]} 36. Qxf5
{[%clk 0:00:08.6]} 36... exf5 {[%clk 0:00:24.6]} 37. Rf1 {[%clk 0:00:10.5]}
37... Be3 {[%clk 0:00:25.2]} 38. Rhf3 {[%clk 0:00:12.4]} 38... f4 {[%clk
0:00:26.6]} 39. Rh1 {[%clk 0:00:13.1]} 39... Bxd4 {[%clk 0:00:26.7]} 40. b3
{[%clk 0:00:15]} 40... cxb3 {[%clk 0:00:27]} 41. axb3 {[%clk 0:00:16.9]} 41...
Re3 {[%clk 0:00:27.5]} 42. Rhf1 {[%clk 0:00:16.7]} 42... Rxf3 {[%clk 0:00:28.2]}
43. Rxf3 {[%clk 0:00:18.6]} 43... Be3 {[%clk 0:00:29.7]} 44. Kc2 {[%clk
0:00:20]} 44... Rc7+ {[%clk 0:00:30.7]} 45. Kd3 {[%clk 0:00:19.7]} 45... Ke7
{[%clk 0:00:32]} 46. Rf1 {[%clk 0:00:20.2]} 46... Ke6 {[%clk 0:00:33.1]} 47. Ra1
{[%clk 0:00:21]} 47... Rd7+ {[%clk 0:00:34.4]} 48. Ke4 {[%clk 0:00:21.6]} 48...
Rd4+ {[%clk 0:00:35.4]} 49. Kf3 {[%clk 0:00:22.2]} 49... Rd5 {[%clk 0:00:37.3]}
50. Ra4 {[%clk 0:00:22.8]} 50... Rb5 {[%clk 0:00:38.2]} 51. Ra3 {[%clk
0:00:21.8]} 51... Ke5 {[%clk 0:00:39.1]} 52. Ke2 {[%clk 0:00:20.6]} 52... Bc5
{[%clk 0:00:39.1]} 0-1

[Event "*** Titled Tuesday Blitz"]
[Site "Chess.com"]
[Date "2019.11.05"]
[Round "2"]
[White "NoGalloNoParty"]
[Black "GianmarcoVaR"]
[Result "0-1"]
[WhiteElo "2305"]
[BlackElo "2532"]
[TimeControl "180+2"]
[EndTime "13:24:44 PST"]
[Termination "GianmarcoVaR won by resignation"]

1. d4 {[%clk 0:03:01.9]} 1... Nf6 {[%clk 0:02:48.2]} 2. Nf3 {[%clk 0:03:02.1]}
2... e6 {[%clk 0:02:49.7]} 3. c4 {[%clk 0:03:02.8]} 3... b6 {[%clk 0:02:50.8]}
4. g3 {[%clk 0:03:02.7]} 4... Bb7 {[%clk 0:02:52.2]} 5. Bg2 {[%clk 0:03:03.9]}
5... Be7 {[%clk 0:02:53.6]} 6. O-O {[%clk 0:03:04.4]} 6... O-O {[%clk
0:02:55.1]} 7. Nc3 {[%clk 0:03:05.3]} 7... Ne4 {[%clk 0:02:56.2]} 8. Bd2 {[%clk
0:03:06.2]} 8... Bf6 {[%clk 0:02:54.8]} 9. Rc1 {[%clk 0:03:05.5]} 9... d6 {[%clk
0:02:52.8]} 10. b3 {[%clk 0:03:04.2]} 10... Nd7 {[%clk 0:02:53.1]} 11. Nxe4
{[%clk 0:03:03.7]} 11... Bxe4 {[%clk 0:02:53.6]} 12. Bc3 {[%clk 0:03:04.9]}
12... Qe7 {[%clk 0:02:49.5]} 13. Qd2 {[%clk 0:03:03.2]} 13... Rad8 {[%clk
0:02:35.5]} 14. Rfd1 {[%clk 0:03:03.3]} 14... Rfe8 {[%clk 0:02:24.8]} 15. h4
{[%clk 0:03:02.6]} 15... h6 {[%clk 0:02:12.9]} 16. Qe3 {[%clk 0:02:59.7]} 16...
Ba8 {[%clk 0:02:10.4]} 17. b4 {[%clk 0:02:44.4]} 17... e5 {[%clk 0:01:57.3]} 18.
d5 {[%clk 0:02:37.5]} 18... Bb7 {[%clk 0:00:57.7]} 19. Nd2 {[%clk 0:01:51.4]}
19... Ba6 {[%clk 0:00:45]} 20. Ba1 {[%clk 0:01:42]} 20... Bc8 {[%clk 0:00:44.1]}
21. Ne4 {[%clk 0:01:40.7]} 21... h5 {[%clk 0:00:35]} 22. Qf3 {[%clk 0:00:49.7]}
22... g6 {[%clk 0:00:31.8]} 23. Nxf6+ {[%clk 0:00:49.4]} 23... Nxf6 {[%clk
0:00:32.5]} 24. Qc3 {[%clk 0:00:45]} 24... Bf5 {[%clk 0:00:31.3]} 25. c5 {[%clk
0:00:38.1]} 25... Be4 {[%clk 0:00:30.6]} 26. cxd6 {[%clk 0:00:32.7]} 26... cxd6
{[%clk 0:00:30]} 27. Bxe4 {[%clk 0:00:29]} 27... Nxe4 {[%clk 0:00:31.3]} 28. Qf3
{[%clk 0:00:26.3]} 28... f5 {[%clk 0:00:29.2]} 29. Rc6 {[%clk 0:00:26.7]} 29...
Rc8 {[%clk 0:00:25.1]} 30. Rdc1 {[%clk 0:00:26.9]} 30... Qd7 {[%clk 0:00:25.7]}
31. Qe3 {[%clk 0:00:25]} 31... Kg7 {[%clk 0:00:24.9]} 32. f3 {[%clk 0:00:24.4]}
32... Nf6 {[%clk 0:00:25.9]} 33. Qg5 {[%clk 0:00:24.9]} 33... Nxd5 {[%clk
0:00:25.3]} 34. b5 {[%clk 0:00:19.6]} 34... Nf6 {[%clk 0:00:12.9]} 35. f4 {[%clk
0:00:20.2]} 35... Nh7 {[%clk 0:00:13.9]} 36. Bxe5+ {[%clk 0:00:19]} 36... Rxe5
{[%clk 0:00:11.7]} 37. fxe5 {[%clk 0:00:18.8]} 37... Nxg5 {[%clk 0:00:11.8]} 38.
Rxc8 {[%clk 0:00:20]} 38... Ne6 {[%clk 0:00:12]} 0-1

[Event "*** Titled Tuesday Blitz"]
[Site "Chess.com"]
[Date "2019.11.05"]
[Round "2"]
[White "MissingLife"]
[Black "PawnEatingZombie"]
[Result "1-0"]
[WhiteElo "2461"]
[BlackElo "2171"]
[TimeControl "180+2"]
[EndTime "13:24:44 PST"]
[Termination "MissingLife won by resignation"]

1. Nf3 {[%clk 0:03:01.9]} 1... d5 {[%clk 0:03:00.7]} 2. g3 {[%clk 0:03:03.3]}
2... e6 {[%clk 0:03:01.4]} 3. Bg2 {[%clk 0:03:04.6]} 3... b5 {[%clk 0:03:02.7]}
4. d3 {[%clk 0:03:06.1]} 4... Bb7 {[%clk 0:03:01.8]} 5. Nbd2 {[%clk 0:03:07.8]}
5... Nf6 {[%clk 0:02:59.5]} 6. O-O {[%clk 0:03:04]} 6... Be7 {[%clk 0:02:58.4]}
7. e4 {[%clk 0:03:05.5]} 7... O-O {[%clk 0:02:54.7]} 8. e5 {[%clk 0:03:04.2]}
8... Nfd7 {[%clk 0:02:55.5]} 9. Re1 {[%clk 0:03:06.1]} 9... c5 {[%clk 0:02:56]}
10. Nf1 {[%clk 0:03:07]} 10... Qc7 {[%clk 0:02:57.1]} 11. h4 {[%clk 0:03:08.5]}
11... Nc6 {[%clk 0:02:56.3]} 12. Bf4 {[%clk 0:03:10.1]} 12... Rfc8 {[%clk
0:02:56.6]} 13. c4 {[%clk 0:03:10.5]} 13... Na5 {[%clk 0:02:50]} 14. cxb5 {[%clk
0:03:07.7]} 14... a6 {[%clk 0:02:51]} 15. bxa6 {[%clk 0:03:03.9]} 15... Bxa6
{[%clk 0:02:52.1]} 16. Rc1 {[%clk 0:03:01.9]} 16... Nc6 {[%clk 0:02:16.4]} 17.
a3 {[%clk 0:02:50.6]} 17... Qb6 {[%clk 0:02:10.5]} 18. Rc2 {[%clk 0:02:45.5]}
18... Rab8 {[%clk 0:02:09.7]} 19. h5 {[%clk 0:02:33]} 19... h6 {[%clk
0:02:08.9]} 20. g4 {[%clk 0:02:33.6]} 20... Bb5 {[%clk 0:02:08.8]} 21. Rce2
{[%clk 0:02:20.5]} 21... Qd8 {[%clk 0:02:06.8]} 22. Qd2 {[%clk 0:02:19.3]} 22...
Nd4 {[%clk 0:01:55.2]} 23. Re3 {[%clk 0:01:40.9]} 23... Nxf3+ {[%clk 0:01:22.6]}
24. Rxf3 {[%clk 0:01:40.5]} 24... c4 {[%clk 0:01:24.5]} 25. d4 {[%clk
0:01:39.8]} 25... Bg5 {[%clk 0:01:05.9]} 26. Be3 {[%clk 0:01:32.2]} 26... Ba4
{[%clk 0:01:04]} 27. Rg3 {[%clk 0:01:30.8]} 27... Rb3 {[%clk 0:01:00.4]} 28. f4
{[%clk 0:01:30.9]} 28... Bh4 {[%clk 0:01:01.5]} 29. f5 {[%clk 0:01:26.6]} 29...
Bxg3 {[%clk 0:01:00.1]} 30. Nxg3 {[%clk 0:01:28.5]} 30... Rcb8 {[%clk
0:01:00.4]} 31. Qf2 {[%clk 0:01:18.3]} 31... Rxb2 {[%clk 0:00:59.1]} 32. Qf3
{[%clk 0:01:19.8]} 32... c3 {[%clk 0:00:46.3]} 33. f6 {[%clk 0:01:19.6]} 33...
Qf8 {[%clk 0:00:39.2]} 34. g5 {[%clk 0:01:18.7]} 34... gxf6 {[%clk 0:00:33.2]}
35. exf6 {[%clk 0:01:16.1]} 35... c2 {[%clk 0:00:30.5]} 36. g6 {[%clk
0:01:15.1]} 36... Rb1 {[%clk 0:00:23.4]} 37. Bc1 {[%clk 0:01:11.3]} 37... Rxc1
{[%clk 0:00:21.4]} 38. Rxc1 {[%clk 0:01:12.8]} 38... Rb1 {[%clk 0:00:22.5]} 39.
Qe3 {[%clk 0:01:06.4]} 39... Nxf6 {[%clk 0:00:14.6]} 40. Ne2 {[%clk 0:01:01]}
40... Ne4 {[%clk 0:00:14.3]} 41. Bxe4 {[%clk 0:01:01.2]} 41... dxe4 {[%clk
0:00:15]} 42. Qxe4 {[%clk 0:01:03.1]} 42... Rxc1+ {[%clk 0:00:15.4]} 43. Nxc1
{[%clk 0:01:05]} 43... Qxa3 {[%clk 0:00:15.9]} 44. gxf7+ {[%clk 0:01:04.8]}
44... Kxf7 {[%clk 0:00:16.4]} 45. Qh7+ {[%clk 0:01:04.2]} 45... Kf6 {[%clk
0:00:15.1]} 46. Qxh6+ {[%clk 0:01:05.3]} 46... Ke7 {[%clk 0:00:16.1]} 47. Ne2
{[%clk 0:01:04.2]} 47... Qd6 {[%clk 0:00:12.1]} 48. Qg7+ {[%clk 0:01:04.3]}
48... Kd8 {[%clk 0:00:13]} 49. Qg5+ {[%clk 0:00:56.4]} 49... Kc7 {[%clk
0:00:12.1]} 50. Qa5+ {[%clk 0:00:57.8]} 50... Qb6 {[%clk 0:00:10.3]} 51. Qxa4
{[%clk 0:00:58.8]} 51... Qb1+ {[%clk 0:00:11]} 52. Kg2 {[%clk 0:00:56.4]} 52...
c1=Q {[%clk 0:00:11.4]} 53. Qa5+ {[%clk 0:00:55]} 53... Kc8 {[%clk 0:00:11.2]}
54. Nxc1 {[%clk 0:00:55.5]} 54... Qxc1 {[%clk 0:00:11.9]} 55. Qc5+ {[%clk
0:00:56.9]} 1-0

[Event "*** Titled Tuesday Blitz"]
[Site "Chess.com"]
[Date "2019.11.05"]
[Round "2"]
[White "Bigfish1995"]
[Black "Qvalda"]
[Result "1-0"]
[WhiteElo "3025"]
[BlackElo "2527"]
[TimeControl "180+2"]
[EndTime "13:24:47 PST"]
[Termination "Bigfish1995 won by resignation"]

1. d4 {[%clk 0:03:01.9]} 1... d5 {[%clk 0:03:01]} 2. c4 {[%clk 0:02:51.1]} 2...
e6 {[%clk 0:03:02]} 3. Nf3 {[%clk 0:02:47.7]} 3... a6 {[%clk 0:03:02.4]} 4. c5
{[%clk 0:02:46.2]} 4... b6 {[%clk 0:02:39.8]} 5. cxb6 {[%clk 0:02:47.2]} 5...
cxb6 {[%clk 0:02:41.7]} 6. Bf4 {[%clk 0:02:48.2]} 6... Nf6 {[%clk 0:02:42.3]} 7.
e3 {[%clk 0:02:48.6]} 7... Bd6 {[%clk 0:02:43.3]} 8. Bd3 {[%clk 0:02:48.8]} 8...
O-O {[%clk 0:02:43.8]} 9. O-O {[%clk 0:02:49.2]} 9... Bxf4 {[%clk 0:02:41.1]}
10. exf4 {[%clk 0:02:49.6]} 10... Qd6 {[%clk 0:02:42.1]} 11. g3 {[%clk
0:02:49.6]} 11... Nc6 {[%clk 0:02:43.1]} 12. Nc3 {[%clk 0:02:50.8]} 12... Bd7
{[%clk 0:02:36]} 13. Rc1 {[%clk 0:02:49.2]} 13... Rfc8 {[%clk 0:02:25.7]} 14.
Qe2 {[%clk 0:02:39.1]} 14... b5 {[%clk 0:02:23.2]} 15. Rfd1 {[%clk 0:02:40.5]}
15... h6 {[%clk 0:02:19.9]} 16. h3 {[%clk 0:02:07]} 16... Be8 {[%clk 0:01:50.6]}
17. Qe3 {[%clk 0:02:05.2]} 17... Na5 {[%clk 0:01:46.8]} 18. b3 {[%clk
0:02:00.7]} 18... b4 {[%clk 0:01:40.4]} 19. Ne2 {[%clk 0:02:00.9]} 19... Bb5
{[%clk 0:01:41]} 20. Ne5 {[%clk 0:01:50.7]} 20... Bxd3 {[%clk 0:01:31]} 21. Nxd3
{[%clk 0:01:49.2]} 21... Ne4 {[%clk 0:01:32.2]} 22. f3 {[%clk 0:01:48]} 22...
Nc3 {[%clk 0:01:27.7]} 23. Nxc3 {[%clk 0:01:47.7]} 23... bxc3 {[%clk 0:01:29]}
24. Nc5 {[%clk 0:01:47.4]} 24... Qb8 {[%clk 0:00:33.9]} 25. Rxc3 {[%clk
0:01:46.7]} 25... Nb7 {[%clk 0:00:34.9]} 26. Rdc1 {[%clk 0:01:40]} 26... Nd6
{[%clk 0:00:34]} 27. g4 {[%clk 0:01:27.3]} 27... a5 {[%clk 0:00:24]} 28. R3c2
{[%clk 0:01:26.1]} 28... Qa7 {[%clk 0:00:21.6]} 29. a4 {[%clk 0:01:15.6]} 29...
Rab8 {[%clk 0:00:22.1]} 30. Qe5 {[%clk 0:01:16.4]} 30... Ne8 {[%clk 0:00:16.9]}
31. f5 {[%clk 0:01:12.4]} 31... exf5 {[%clk 0:00:16.1]} 32. Qxf5 {[%clk
0:01:12.9]} 32... Nf6 {[%clk 0:00:16.3]} 33. h4 {[%clk 0:01:11.2]} 33... Qe7
{[%clk 0:00:08.1]} 34. Qe5 {[%clk 0:01:01.5]} 34... Re8 {[%clk 0:00:07.7]} 35.
Qxe7 {[%clk 0:01:00.3]} 35... Rxe7 {[%clk 0:00:09.6]} 36. Kf2 {[%clk 0:01:00.7]}
36... Rbe8 {[%clk 0:00:10.4]} 37. Nd3 {[%clk 0:00:46.5]} 37... Re3 {[%clk
0:00:10.5]} 38. Rd2 {[%clk 0:00:47.6]} 38... g5 {[%clk 0:00:08.8]} 39. h5 {[%clk
0:00:46.8]} 39... Kg7 {[%clk 0:00:09.1]} 40. Rc5 {[%clk 0:00:46]} 40... R3e6
{[%clk 0:00:03]} 41. Rxa5 {[%clk 0:00:46.8]} 41... Rb8 {[%clk 0:00:03.1]} 42.
Ra7 {[%clk 0:00:44]} 42... Rxb3 {[%clk 0:00:03]} 43. Nc5 {[%clk 0:00:45.2]}
43... Rbb6 {[%clk 0:00:02.4]} 44. Nxe6+ {[%clk 0:00:46]} 44... Rxe6 {[%clk
0:00:04.3]} 45. Rc2 {[%clk 0:00:45.6]} 45... Rb6 {[%clk 0:00:04.2]} 46. Rcc7
{[%clk 0:00:46.5]} 46... Rb2+ {[%clk 0:00:02.3]} 47. Ke1 {[%clk 0:00:47.7]}
47... Ne8 {[%clk 0:00:03.2]} 48. Rxf7+ {[%clk 0:00:48.2]} 48... Kg8 {[%clk
0:00:04.1]} 49. Rfd7 {[%clk 0:00:49.3]} 49... Rb1+ {[%clk 0:00:04.4]} 50. Kd2
{[%clk 0:00:49.9]} 50... Kf8 {[%clk 0:00:05.4]} 51. Rd8 {[%clk 0:00:50.3]} 51...
Rb2+ {[%clk 0:00:06.7]} 52. Kc1 {[%clk 0:00:51]} 52... Re2 {[%clk 0:00:06.2]}
53. Raa8 {[%clk 0:00:52.4]} 1-0